fUSD/lending_fUSD_20260702
["ID","MTS","AMOUNT","RATE_DAILY","PERIOD"]
[426845855,1782945041000,-211.97026968,0.00024655,2]
[426845857,1782945042000,-344.60187176,0.00024655,2]
[426845856,1782945042000,-288.02973032,0.00024655,2]
[426845971,1782945043000,-44.4498158,0.00024655,2]
[426846078,1782945046000,-500.0,0.00024655,2]
[426846076,1782945046000,-500.0,0.00024655,2]
[426846075,1782945046000,-500.0,0.00024655,2]
[426846074,1782945046000,-500.0,0.00024655,2]
[426846070,1782945046000,-500.0,0.00024655,2]
[426846071,1782945046000,-500.0,0.00024655,2]
[426846066,1782945046000,-500.0,0.00024655,2]
[426846069,1782945046000,-500.0,0.00024655,2]
[426846067,1782945046000,-500.0,0.00024655,2]
[426846065,1782945046000,-500.0,0.00024655,2]
[426846063,1782945046000,-500.0,0.00024655,2]
[426846077,1782945046000,-500.0,0.00024655,2]
[426846064,1782945046000,-500.0,0.00024655,2]
[426846073,1782945046000,-500.0,0.00024655,2]
[426846062,1782945046000,-500.0,0.00024655,2]
[426846072,1782945046000,-500.0,0.00024655,2]
[426846060,1782945046000,-499.47525456,0.00024655,2]
[426846057,1782945046000,-110.94831244,0.00024655,2]
[426846059,1782945046000,-500.0,0.00024655,2]
[426846058,1782945046000,-500.0,0.00024655,2]
[426846061,1782945046000,-0.52474544,0.00024655,2]
[426846084,1782945046000,-500.0,0.00024655,2]
[426846068,1782945046000,-500.0,0.00024655,2]
[426846083,1782945046000,-500.0,0.00024655,2]
[426846099,1782945046000,-425.74876777,0.00024655,2]
[426846102,1782945046000,-161.84,0.00024658,2]
[426846100,1782945046000,-183.36,0.00024658,2]
[426846097,1782945046000,-180.5069813,0.00024655,2]
[426846096,1782945046000,-284.41541397,0.00024655,2]
[426846101,1782945046000,-1000.0,0.00024658,2]
[426846098,1782945046000,-423.90696133,0.00024655,2]
[426846103,1782945046000,-86.82971664,0.00024658,2]
[426846095,1782945046000,-19.91196251,0.00024655,2]
[426846094,1782945046000,-308.21954286,0.00024655,2]
[426846093,1782945046000,-361.82828001,0.00024655,2]
[426846089,1782945046000,-500.0,0.00024655,2]
[426846092,1782945046000,-328.31545288,0.00024655,2]
[426846088,1782945046000,-500.0,0.00024655,2]
[426846090,1782945046000,-500.0,0.00024655,2]
[426846086,1782945046000,-500.0,0.00024655,2]
[426846087,1782945046000,-500.0,0.00024655,2]
[426846081,1782945046000,-500.0,0.00024655,2]
[426846079,1782945046000,-500.0,0.00024655,2]
[426846082,1782945046000,-500.0,0.00024655,2]
[426846080,1782945046000,-500.0,0.00024655,2]
[426846091,1782945046000,-781.0,0.00024655,2]
[426846085,1782945046000,-500.0,0.00024655,2]
[426846104,1782945088000,7372.0235,0.00025674,120]
[426846108,1782945150000,34204.369,0.00024555,120]
[426846112,1782945447000,151.0,0.0003,120]
[426846113,1782945491000,1278.8237,0.00025674,120]
[426846114,1782945559000,151.0,0.0003,120]
[426846141,1782946140000,2000.0,0.00029999,120]
[426846150,1782946231000,-400.25440727,0.000142,2]
[426846153,1782946231000,-8031.09448977,0.00015,2]
[426846152,1782946231000,-13639.58713523,0.00015,2]
[426846151,1782946231000,-2829.62929356,0.00015,2]
[426846148,1782946231000,-967.11252721,0.000142,2]
[426846149,1782946231000,-325.66936823,0.000142,2]
[426846147,1782946231000,-390.37,0.000142,2]
[426846164,1782946232000,-607.6,0.000209,2]
[426846165,1782946232000,-192.08612595,0.000209,2]
[426846169,1782946232000,-607.6,0.000211,2]
[426846163,1782946232000,-503.0,0.00020685,2]
[426846168,1782946232000,-398.45,0.00020951,2]
[426846171,1782946232000,-607.6,0.000213,2]
[426846170,1782946232000,-174.00370314,0.000211,2]
[426846166,1782946232000,-189.77159535,0.000209,2]
[426846160,1782946232000,-62.87638745,0.00018959,2]
[426846161,1782946232000,-437.12361255,0.00018959,2]
[426846158,1782946232000,-193.0,0.00015749,2]
[426846156,1782946232000,-150.0,0.00015449,2]
[426846159,1782946232000,-375.93,0.0001575,2]
[426846157,1782946232000,-150.0,0.00015599,2]
[426846155,1782946232000,-150.0,0.00015299,2]
[426846154,1782946232000,-150.0,0.00015149,2]
[426846167,1782946232000,-174.00370314,0.000209,2]
[426846162,1782946232000,-500.0,0.00019644,2]
[426846183,1782946232000,-171.26538587,0.00023405,2]
[426846172,1782946232000,-174.00370314,0.000213,2]
[426846185,1782946232000,-177.86244448,0.00023405,2]
[426846173,1782946232000,-607.6,0.000215,2]
[426846184,1782946232000,-182.36322953,0.00023405,2]
[426846191,1782946232000,-247.55914949,0.00024,2]
[426846187,1782946232000,-194.99720221,0.00023405,2]
[426846188,1782946232000,-331.60261684,0.00023407,2]
[426846189,1782946232000,-367.66053704,0.00023407,2]
[426846190,1782946232000,-207.0,0.00024,2]
[426846186,1782946232000,-195.84443317,0.00023405,2]
[426846177,1782946232000,-160.0,0.00022834,2]
[426846179,1782946232000,-216.0,0.00023291,2]
[426846181,1782946232000,-700.0,0.00023404,2]
[426846180,1782946232000,-5000.0,0.00023311,2]
[426846178,1782946232000,-5000.0,0.00023,3]
[426846176,1782946232000,-417.65364946,0.00022245,2]
[426846174,1782946232000,-607.6,0.000217,2]
[426846175,1782946232000,-150.0,0.00021895,2]
[426846182,1782946232000,-156.9944802,0.00023405,2]
[426846197,1782946240000,-52.44085051,0.00024,2]
[426846200,1782946240000,-309.0,0.00024,2]
[426846199,1782946240000,-258.0,0.00024,2]
[426846198,1782946240000,-399.0,0.00024,2]
[426846203,1782946240000,-409.87409292,0.00024198,2]
[426846204,1782946240000,-37.39090605,0.00024376,2]
[426846202,1782946240000,-19.04078692,0.00024198,2]
[426846201,1782946240000,-159.0,0.00024,2]
[426846207,1782946241000,-150.89509679,0.00023654,2]
[426846209,1782946241000,-148.05058175,0.00023655,2]
[426846208,1782946241000,-151.10490321,0.00023655,2]
[426846212,1782946241000,-260.62737929,0.00024558,2]
[426846213,1782946241000,-167.11,0.00024637,2]
[426846211,1782946241000,-234.0,0.00024376,2]
[426846214,1782946241000,-115.46777598,0.00024654,2]
[426846210,1782946241000,-179.27255329,0.00024376,2]
[426846216,1782946241000,-269.09694834,0.00024654,2]
[426846219,1782946241000,-279.48818024,0.00024654,2]
[426846218,1782946241000,-13.64557072,0.00024654,2]
[426846217,1782946241000,-195.99758335,0.00024654,2]
[426846220,1782946241000,-120.09214068,0.00024654,2]
[426846221,1782946241000,-313.98896039,0.00024654,2]
[426846222,1782946241000,-104.63471193,0.00024654,2]
[426846215,1782946241000,-41.20784365,0.00024654,2]
[426846234,1782946243000,-237.89605982,0.00024654,2]
[426846235,1782946243000,-213.03513937,0.00024654,2]
[426846237,1782946243000,-355.72488895,0.00024654,2]
[426846241,1782946243000,-399.88850666,0.00024655,2]
[426846236,1782946243000,-151.69131968,0.00024654,2]
[426846238,1782946243000,-391.68886635,0.00024654,2]
[426846239,1782946243000,-389.99440442,0.00024654,2]
[426846240,1782946243000,-180.5069813,0.00024655,2]
[426846244,1782946246000,-4540.98919944,0.00024655,2]
[426846245,1782946246000,-1204.6576,0.00024555,2]
[426846246,1782946246000,-904.78891988,0.00024655,2]
[426846247,1782946292000,502.0,0.000301,120]
[426846248,1782946401000,1757.49124,0.00030137,120]
[426846261,1782947090000,191.23,0.00028735,120]
[426846263,1782947151000,178.0,0.00030136,120]
[426846265,1782947341000,2000.0,0.00030135,120]
[426846281,1782947432000,-1534.55827665,0.000211,2]
[426846279,1782947432000,-215.97890669,0.00020912,2]
[426846276,1782947432000,-1534.55827665,0.000209,2]
[426846277,1782947432000,-192.08612595,0.000209,2]
[426846278,1782947432000,-223.97838324,0.000209,2]
[426846280,1782947432000,-385.055,0.00021099,12]
[426846283,1782947432000,-223.97838324,0.000211,2]
[426846285,1782947432000,-606.67,0.00021273,2]
[426846282,1782947432000,-192.08612595,0.000211,2]
[426846289,1782947432000,-513.59021709,0.00021273,2]
[426846287,1782947432000,-3894.12087359,0.00021273,2]
[426846286,1782947432000,-1388.58,0.00021273,2]
[426846288,1782947432000,-1623.11679656,0.00021273,2]
[426846290,1782947432000,-1017.36718109,0.00021273,2]
[426846284,1782947432000,-3463.36,0.00021273,2]
[426846330,1782947438000,-15232.7002911,0.00023248,2]
[426846329,1782947438000,-723.7653632,0.00023248,2]
[426846332,1782947438000,-404.935797,0.00023248,2]
[426846331,1782947438000,-30048.3504608,0.00023248,2]
[426846334,1782947438000,-404.935797,0.00023248,2]
[426846333,1782947438000,-404.935797,0.00023248,2]
[426846336,1782947438000,-11136.1550384,0.00023248,2]
[426846340,1782947438000,-170.19,0.00023344,2]
[426846339,1782947438000,-216.0,0.00023291,2]
[426846335,1782947438000,-404.935797,0.00023248,2]
[426846338,1782947438000,-234.0,0.00023271,2]
[426846342,1782947438000,-162.13123196,0.00023406,2]
[426846343,1782947438000,-173.43272146,0.00023406,2]
[426846345,1782947438000,-160.0,0.00023498,2]
[426846344,1782947438000,-170.20568089,0.00023406,2]
[426846347,1782947438000,-223.33205871,0.00023832,3]
[426846327,1782947438000,-4188.7966217,0.00023248,2]
[426846337,1782947438000,-3270.46,0.00023264,2]
[426846328,1782947438000,-4145.6546832,0.00023248,2]
[426846305,1782947438000,-976.62,0.000176,2]
[426846323,1782947438000,-160.47427849,0.00023247,2]
[426846346,1782947438000,-234.56464128,0.00023743,2]
[426846307,1782947438000,-13097.96493167,0.00021273,2]
[426846310,1782947438000,-223.97838324,0.000213,2]
[426846311,1782947438000,-1534.55827665,0.000215,2]
[426846309,1782947438000,-1534.55827665,0.000213,2]
[426846313,1782947438000,-1534.55827665,0.000217,2]
[426846312,1782947438000,-223.97838324,0.000215,2]
[426846315,1782947438000,-182.4831525,0.00022248,2]
[426846325,1782947438000,-408.57397179,0.00023247,2]
[426846314,1782947438000,-223.97838324,0.000217,2]
[426846316,1782947438000,-167.12,0.00022676,2]
[426846319,1782947438000,-191.23,0.00022988,2]
[426846320,1782947438000,-234.56464128,0.00023148,2]
[426846321,1782947438000,-592.24504166,0.00023148,2]
[426846318,1782947438000,-216.66345934,0.00022887,2]
[426846322,1782947438000,-410.32068783,0.00023247,2]
[426846324,1782947438000,-7288.2634962,0.00023247,2]
[426846326,1782947438000,-280935.6580144,0.00023248,2]
[426846317,1782947438000,-5000.0,0.00022721,2]
[426846348,1782947438000,-651.11,0.00023839,2]
[426846341,1782947438000,-150.14381197,0.00023406,2]
[426846351,1782947438000,-379.0,0.00024,2]
[426846373,1782947438000,-5687.8956913,0.00024655,2]
[426846374,1782947438000,-404.935797,0.00024655,2]
[426846375,1782947438000,-404.935797,0.00024655,2]
[426846376,1782947438000,-404.935797,0.00024655,2]
[426846378,1782947438000,-183.36,0.00024658,2]
[426846379,1782947438000,-1000.0,0.00024658,2]
[426846377,1782947438000,-404.935797,0.00024655,2]
[426846380,1782947438000,-162.42,0.00024658,2]
[426846383,1782947438000,-285.0,0.00025,2]
[426846381,1782947438000,-234.56464128,0.00024932,2]
[426846385,1782947438000,-294.0,0.00025,2]
[426846384,1782947438000,-379.0,0.00025,2]
[426846386,1782947438000,-1605.21458407,0.00025148,2]
[426846387,1782947438000,-709.11,0.000252,2]
[426846389,1782947438000,-193.646,0.00025397,10]
[426846388,1782947438000,-2146.048,0.00025397,10]
[426846390,1782947438000,-404.935797,0.00025487,2]
[426846350,1782947438000,-285.0,0.00024,2]
[426846391,1782947438000,-404.935797,0.00025487,2]
[426846370,1782947438000,-156.43938379,0.00024655,2]
[426846371,1782947438000,-248.06961535,0.00024655,2]
[426846382,1782947438000,-197.0,0.00025,2]
[426846372,1782947438000,-150889.5317444,0.00024655,2]
[426846349,1782947438000,-197.0,0.00024,2]
[426846352,1782947438000,-294.0,0.00024,2]
[426846369,1782947438000,-246.99645613,0.00024655,2]
[426846356,1782947438000,-404.935797,0.00024174,2]
[426846355,1782947438000,-404.935797,0.00024174,2]
[426846353,1782947438000,-171.45489804,0.00024,2]
[426846358,1782947438000,-404.935797,0.00024174,2]
[426846357,1782947438000,-404.935797,0.00024174,2]
[426846359,1782947438000,-425.07,0.000242,2]
[426846354,1782947438000,-158.0,0.00024017,2]
[426846360,1782947438000,-372.68,0.00024203,2]
[426846361,1782947438000,-234.56464128,0.00024337,2]
[426846363,1782947438000,-592.24504159,0.00024541,2]
[426846366,1782947438000,-324.26246392,0.00024655,2]
[426846362,1782947438000,-157.768214,0.00024541,2]
[426846368,1782947438000,-340.41136178,0.00024655,2]
[426846367,1782947438000,-346.86544293,0.00024655,2]
[426846365,1782947438000,-300.28762394,0.00024655,2]
[426846364,1782947438000,-500.0,0.00024654,2]
[426846426,1782947439000,-678.0,0.00026027,5]
[426846424,1782947439000,-684.0,0.00026027,5]
[426846425,1782947439000,-673.0,0.00026027,5]
[426846422,1782947439000,-678.0,0.00026027,5]
[426846420,1782947439000,-680.0,0.00026027,5]
[426846421,1782947439000,-664.0,0.00026027,5]
[426846418,1782947439000,-671.0,0.00026027,5]
[426846429,1782947439000,-672.0,0.00026027,5]
[426846423,1782947439000,-679.0,0.00026027,5]
[426846427,1782947439000,-682.0,0.00026027,5]
[426846436,1782947439000,-678.0,0.00026027,5]
[426846431,1782947439000,-685.0,0.00026027,5]
[426846432,1782947439000,-677.0,0.00026027,5]
[426846434,1782947439000,-676.0,0.00026027,5]
[426846430,1782947439000,-669.0,0.00026027,5]
[426846433,1782947439000,-674.0,0.00026027,5]
[426846435,1782947439000,-678.0,0.00026027,5]
[426846437,1782947439000,-674.0,0.00026027,5]
[426846439,1782947439000,-667.0,0.00026027,5]
[426846440,1782947439000,-664.0,0.00026027,5]
[426846438,1782947439000,-687.0,0.00026027,5]
[426846419,1782947439000,-673.0,0.00026027,5]
[426846428,1782947439000,-674.0,0.00026027,5]
[426846417,1782947439000,-404.935789,0.00026027,2]
[426846396,1782947439000,-520.29816439,0.00025487,2]
[426846414,1782947439000,-404.935797,0.00026027,2]
[426846441,1782947439000,-662.0,0.00026027,5]
[426846393,1782947439000,-404.935797,0.00025487,2]
[426846395,1782947439000,-486.39369588,0.00025487,2]
[426846392,1782947439000,-404.935797,0.00025487,2]
[426846394,1782947439000,-450.43143591,0.00025487,2]
[426846400,1782947439000,-312.87876759,0.00025487,2]
[426846399,1782947439000,-493.99291227,0.00025487,2]
[426846398,1782947439000,-282.10982466,0.00025487,2]
[426846397,1782947439000,-510.61704267,0.00025487,2]
[426846401,1782947439000,-496.13923071,0.00025487,2]
[426846402,1782947439000,-247.58471781,0.00025488,2]
[426846403,1782947439000,-234.56464128,0.00025527,2]
[426846404,1782947439000,-500.0,0.00025753,7]
[426846405,1782947439000,-162.42,0.00025753,7]
[426846406,1782947439000,-253.47768834,0.00025773,2]
[426846407,1782947439000,-191.23,0.00025862,2]
[426846408,1782947439000,-592.24504159,0.00025934,2]
[426846410,1782947439000,-285.0,0.00026,2]
[426846409,1782947439000,-197.0,0.00026,2]
[426846411,1782947439000,-379.0,0.00026,2]
[426846413,1782947439000,-53671.09259451,0.00026027,2]
[426846412,1782947439000,-294.0,0.00026,2]
[426846415,1782947439000,-404.935797,0.00026027,2]
[426846416,1782947439000,-404.935797,0.00026027,2]
[426846442,1782947439000,-678.0,0.00026027,5]
[426846480,1782947439000,-668.0,0.00026027,5]
[426846446,1782947439000,-680.0,0.00026027,5]
[426846472,1782947439000,-676.0,0.00026027,5]
[426846473,1782947439000,-675.0,0.00026027,5]
[426846475,1782947439000,-683.0,0.00026027,5]
[426846474,1782947439000,-682.0,0.00026027,5]
[426846477,1782947439000,-681.0,0.00026027,5]
[426846476,1782947439000,-681.0,0.00026027,5]
[426846479,1782947439000,-680.0,0.00026027,5]
[426846478,1782947439000,-670.0,0.00026027,5]
[426846481,1782947439000,-893.39,0.00026027,30]
[426846483,1782947439000,-151.80696947,0.00026034,2]
[426846482,1782947439000,-240.0,0.00026027,7]
[426846485,1782947439000,-331.82705777,0.00026034,2]
[426846484,1782947439000,-434.38411646,0.00026034,2]
[426846487,1782947439000,-819.18065052,0.0002604,2]
[426846491,1782947439000,-680.82272356,0.00026042,2]
[426846486,1782947439000,-176.5754635,0.00026034,2]
[426846488,1782947439000,-600.57524788,0.00026042,2]
[426846490,1782947439000,-693.73088586,0.00026042,2]
[426846489,1782947439000,-648.52492784,0.00026042,2]
[426846492,1782947439000,-564.21964933,0.00026042,2]
[426846495,1782947439000,-469.31815138,0.00026042,2]
[426846494,1782947439000,-740.9893684,0.00026042,2]
[426846443,1782947439000,-671.0,0.00026027,5]
[426846471,1782947439000,-669.0,0.00026027,5]
[426846470,1782947439000,-686.0,0.00026027,5]
[426846496,1782947439000,-744.20884606,0.00026042,2]
[426846469,1782947439000,-686.0,0.00026027,5]
[426846467,1782947439000,-682.0,0.00026027,5]
[426846444,1782947439000,-684.0,0.00026027,5]
[426846448,1782947439000,-664.0,0.00026027,5]
[426846447,1782947439000,-679.0,0.00026027,5]
[426846449,1782947439000,-686.0,0.00026027,5]
[426846450,1782947439000,-685.0,0.00026027,5]
[426846451,1782947439000,-674.0,0.00026027,5]
[426846455,1782947439000,-673.0,0.00026027,5]
[426846452,1782947439000,-678.0,0.00026027,5]
[426846453,1782947439000,-670.0,0.00026027,5]
[426846454,1782947439000,-672.0,0.00026027,5]
[426846445,1782947439000,-666.0,0.00026027,5]
[426846456,1782947439000,-684.0,0.00026027,5]
[426846458,1782947439000,-664.0,0.00026027,5]
[426846459,1782947439000,-662.0,0.00026027,5]
[426846460,1782947439000,-664.0,0.00026027,5]
[426846461,1782947439000,-662.0,0.00026027,5]
[426846463,1782947439000,-686.0,0.00026027,5]
[426846462,1782947439000,-678.0,0.00026027,5]
[426846465,1782947439000,-684.0,0.00026027,5]
[426846464,1782947439000,-673.0,0.00026027,5]
[426846466,1782947439000,-688.0,0.00026027,5]
[426846468,1782947439000,-670.0,0.00026027,5]
[426846457,1782947439000,-676.0,0.00026027,5]
[426846531,1782947440000,-2165.26477881,0.00027,10]
[426846532,1782947440000,-197.0,0.00027,2]
[426846533,1782947440000,-285.0,0.00027,2]
[426846525,1782947440000,-500.0,0.00026849,2]
[426846530,1782947440000,-502.12302968,0.00026849,2]
[426846529,1782947440000,-500.0,0.00026849,2]
[426846528,1782947440000,-500.0,0.00026849,2]
[426846526,1782947440000,-500.0,0.00026849,2]
[426846527,1782947440000,-500.0,0.00026849,2]
[426846535,1782947440000,-294.0,0.00027,2]
[426846538,1782947440000,-502.0,0.00027137,2]
[426846534,1782947440000,-379.0,0.00027,2]
[426846537,1782947440000,-166.5036212,0.0002709,2]
[426846539,1782947440000,-976.61991642,0.00027177,2]
[426846540,1782947440000,-709.11,0.000272,2]
[426846543,1782947440000,-348.92353619,0.00027297,2]
[426846542,1782947440000,-434.25575529,0.00027297,2]
[426846541,1782947440000,-976.61991642,0.00027234,2]
[426846545,1782947440000,-1233.44608158,0.00027297,2]
[426846544,1782947440000,-265.23886284,0.00027297,2]
[426846523,1782947440000,-500.0,0.00026849,2]
[426846536,1782947440000,-1231.04958895,0.00027024,2]
[426846524,1782947440000,-500.0,0.00026849,2]
[426846510,1782947440000,-867.16360732,0.00026597,2]
[426846517,1782947440000,-500.0,0.00026849,2]
[426846547,1782947440000,-337.14047458,0.00027297,2]
[426846498,1782947440000,-372.96789632,0.00026044,2]
[426846497,1782947440000,-495.16943563,0.00026043,2]
[426846500,1782947440000,-234.56464128,0.00026121,2]
[426846499,1782947440000,-349.67410435,0.00026044,2]
[426846501,1782947440000,-538.0,0.00026138,10]
[426846503,1782947440000,-216.0,0.00026291,2]
[426846502,1782947440000,-3897.93348006,0.00026172,2]
[426846504,1782947440000,-1157.02,0.00026344,2]
[426846505,1782947440000,-295.0,0.00026521,2]
[426846522,1782947440000,-500.0,0.00026849,2]
[426846508,1782947440000,-750.71905985,0.00026597,2]
[426846512,1782947440000,-10000.0,0.00026686,2]
[426846509,1782947440000,-810.6561598,0.00026597,2]
[426846514,1782947440000,-1051.05452474,0.00026765,2]
[426846513,1782947440000,-234.56464128,0.00026716,2]
[426846516,1782947440000,-162.42,0.00026849,30]
[426846515,1782947440000,-3897.93348006,0.00026774,2]
[426846518,1782947440000,-500.0,0.00026849,2]
[426846519,1782947440000,-500.0,0.00026849,2]
[426846520,1782947440000,-500.0,0.00026849,2]
[426846521,1782947440000,-192.48530162,0.00026849,2]
[426846511,1782947440000,-851.02840445,0.00026597,2]
[426846546,1782947440000,-370.21499588,0.00027297,2]
[426846507,1782947440000,-1349.1141045,0.00026575,2]
[426846548,1782947440000,-382.377839,0.000273,10]
[426846580,1782947440000,-5509.287879,0.00027397,2]
[426846578,1782947440000,-5509.287879,0.00027397,2]
[426846593,1782947440000,-5509.287879,0.00027397,2]
[426846582,1782947440000,-5509.287879,0.00027397,2]
[426846587,1782947440000,-5509.287879,0.00027397,2]
[426846589,1782947440000,-5509.287879,0.00027397,2]
[426846584,1782947440000,-5509.287879,0.00027397,2]
[426846591,1782947440000,-5509.287879,0.00027397,2]
[426846595,1782947440000,-1906.779474,0.00027397,2]
[426846599,1782947440000,-1906.779474,0.00027397,2]
[426846575,1782947440000,-5509.287879,0.00027397,2]
[426846609,1782947440000,-1906.779474,0.00027397,2]
[426846601,1782947440000,-1906.779474,0.00027397,2]
[426846600,1782947440000,-1906.779474,0.00027397,2]
[426846604,1782947440000,-1906.779474,0.00027397,2]
[426846603,1782947440000,-1906.779474,0.00027397,2]
[426846602,1782947440000,-1906.779474,0.00027397,2]
[426846606,1782947440000,-1906.779474,0.00027397,2]
[426846605,1782947440000,-1906.779474,0.00027397,2]
[426846608,1782947440000,-1906.779474,0.00027397,2]
[426846607,1782947440000,-1906.779474,0.00027397,2]
[426846549,1782947440000,-976.61991642,0.00027307,2]
[426846598,1782947440000,-1906.779474,0.00027397,2]
[426846576,1782947440000,-5509.287879,0.00027397,2]
[426846597,1782947440000,-5509.287873,0.00027397,2]
[426846574,1782947440000,-5509.287879,0.00027397,2]
[426846572,1782947440000,-5509.287879,0.00027397,2]
[426846551,1782947440000,-592.24504159,0.00027327,2]
[426846552,1782947440000,-6277.0,0.0002737,2]
[426846553,1782947440000,-3897.93348006,0.00027376,2]
[426846555,1782947440000,-291.91915019,0.00027387,2]
[426846554,1782947440000,-291.91915019,0.00027387,2]
[426846556,1782947440000,-500.0,0.00027396,2]
[426846558,1782947440000,-641.18,0.00027396,2]
[426846557,1782947440000,-500.0,0.00027396,2]
[426846559,1782947440000,-159.0,0.00027397,5]
[426846560,1782947440000,-309.0,0.00027397,5]
[426846561,1782947440000,-277.0,0.00027397,5]
[426846550,1782947440000,-234.56464128,0.00027311,2]
[426846564,1782947440000,-166.0,0.00027397,3]
[426846563,1782947440000,-150.0,0.00027397,2]
[426846565,1782947440000,-1500.0,0.00027397,2]
[426846566,1782947440000,-5509.287879,0.00027397,2]
[426846567,1782947440000,-5509.287879,0.00027397,2]
[426846569,1782947440000,-5509.287879,0.00027397,2]
[426846568,1782947440000,-5509.287879,0.00027397,2]
[426846570,1782947440000,-5509.287879,0.00027397,2]
[426846573,1782947440000,-5509.287879,0.00027397,2]
[426846571,1782947440000,-5509.287879,0.00027397,2]
[426846562,1782947440000,-155.37329024,0.00027397,7]
[426846631,1782947441000,-498.807891,0.00027397,2]
[426846646,1782947441000,-2007.588086,0.00027397,2]
[426846644,1782947441000,-246.546395,0.00027397,2]
[426846642,1782947441000,-498.807891,0.00027397,2]
[426846643,1782947441000,-2007.588086,0.00027397,2]
[426846637,1782947441000,-2007.588086,0.00027397,2]
[426846640,1782947441000,-2007.588086,0.00027397,2]
[426846638,1782947441000,-151.0,0.00027397,2]
[426846639,1782947441000,-498.807891,0.00027397,2]
[426846647,1782947441000,-498.807891,0.00027397,2]
[426846641,1782947441000,-151.0,0.00027397,2]
[426846649,1782947441000,-498.807891,0.00027397,2]
[426846656,1782947441000,-498.807897,0.00027397,2]
[426846648,1782947441000,-2007.588086,0.00027397,2]
[426846651,1782947441000,-498.807891,0.00027397,2]
[426846653,1782947441000,-498.807891,0.00027397,2]
[426846652,1782947441000,-2007.588086,0.00027397,2]
[426846655,1782947441000,-2007.588086,0.00027397,2]
[426846657,1782947441000,-2007.588086,0.00027397,2]
[426846654,1782947441000,-2007.588086,0.00027397,2]
[426846658,1782947441000,-2007.588086,0.00027397,2]
[426846660,1782947441000,-2007.588086,0.00027397,2]
[426846659,1782947441000,-2007.588086,0.00027397,2]
[426846650,1782947441000,-2007.588086,0.00027397,2]
[426846636,1782947441000,-498.807891,0.00027397,2]
[426846610,1782947441000,-1906.779474,0.00027397,2]
[426846634,1782947441000,-2007.588086,0.00027397,2]
[426846662,1782947441000,-2007.588086,0.00027397,2]
[426846611,1782947441000,-1906.779474,0.00027397,2]
[426846613,1782947441000,-1906.779474,0.00027397,2]
[426846614,1782947441000,-1906.779474,0.00027397,2]
[426846612,1782947441000,-1906.779474,0.00027397,2]
[426846615,1782947441000,-1906.779474,0.00027397,2]
[426846616,1782947441000,-1906.779475,0.00027397,2]
[426846617,1782947441000,-498.807891,0.00027397,2]
[426846618,1782947441000,-498.807891,0.00027397,2]
[426846619,1782947441000,-498.807891,0.00027397,2]
[426846620,1782947441000,-498.807891,0.00027397,2]
[426846621,1782947441000,-498.807891,0.00027397,2]
[426846622,1782947441000,-151.0,0.00027397,2]
[426846625,1782947441000,-498.807891,0.00027397,2]
[426846624,1782947441000,-151.0,0.00027397,2]
[426846623,1782947441000,-498.807891,0.00027397,2]
[426846627,1782947441000,-498.807891,0.00027397,2]
[426846630,1782947441000,-151.0,0.00027397,2]
[426846628,1782947441000,-151.0,0.00027397,2]
[426846629,1782947441000,-498.807891,0.00027397,2]
[426846626,1782947441000,-151.0,0.00027397,2]
[426846632,1782947441000,-151.0,0.00027397,2]
[426846633,1782947441000,-498.807891,0.00027397,2]
[426846635,1782947441000,-151.0,0.00027397,2]
[426846661,1782947441000,-2007.588086,0.00027397,2]
[426846645,1782947441000,-498.807891,0.00027397,2]